fUST/lending_fUST_20250302
["ID","MTS","AMOUNT","RATE_DAILY","PERIOD"]
[355074032,1740886337507,-423.83323448,0.00027913,2]
[355074033,1740886337517,-500.0,0.00027913,2]
[355074034,1740886337526,-3670.05,0.00027913,2]
[355074035,1740886337536,-8285.81,0.00027913,2]
[355074036,1740886337545,-794.47,0.00027913,2]
[355074037,1740886337554,-1888.44,0.00027913,2]
[355074038,1740886337564,-401.04336667,0.00027913,2]
[355074039,1740886337574,-1071.59,0.00027913,2]
[355074040,1740886337583,-603.56,0.00027913,2]
[355074041,1740886337592,-1646.49,0.00027913,2]
[355074042,1740886337602,-2181.0,0.00027913,2]
[355074043,1740886337612,-2015.79,0.00027913,2]
[355074044,1740886337622,-500.0,0.00027913,2]
[355074045,1740886337631,-1677.97,0.00027913,2]
[355074046,1740886337641,-2507.59,0.00027913,2]
[355074047,1740886337650,-500.0,0.00027913,2]
[355074048,1740886337660,-500.0,0.00027913,2]
[355074049,1740886337669,-25000.0,0.00027945,4]
[355074050,1740886337679,-155.378755,0.00027982,4]
[355074051,1740886337688,-32215.25022678,0.0002799,2]
[355074052,1740886337697,-5000.0,0.00028,2]
[355074053,1740886337707,-899.3047,0.00028,3]
[355074054,1740886337716,-2949.55,0.00028,2]
[355074055,1740886337726,-1000.0,0.00028,2]
[355074056,1740886337735,-1511662.50581862,0.00028,2]
[355074057,1740886337744,-6120.0,0.00028,30]
[355074058,1740886337754,-1700.0,0.00028,30]
[355074059,1740886337764,-1700.0,0.00028,30]
[355074060,1740886337773,-1700.0,0.00028,30]
[355074061,1740886337783,-1700.0,0.00028,30]
[355074062,1740886337792,-1700.0,0.00028,30]
[355074063,1740886337802,-1700.0,0.00028,30]
[355074064,1740886337811,-1700.0,0.00028,30]
[355074065,1740886337821,-1700.0,0.00028,30]
[355074066,1740886337831,-1700.0,0.00028,30]
[355074067,1740886337841,-1700.0,0.00028,30]
[355074068,1740886337850,-500.0,0.00028,30]
[355074069,1740886337860,-500.0,0.00028,30]
[355074070,1740886337869,-1700.0,0.00028,30]
[355074071,1740886337878,-500.0,0.00028,30]
[355074072,1740886337888,-1700.0,0.00028,30]
[355074073,1740886337898,-500.0,0.00028,30]
[355074074,1740886337908,-500.0,0.00028,30]
[355074075,1740886337917,-1700.0,0.00028,30]
[355074076,1740886337927,-500.0,0.00028,30]
[355074077,1740886337937,-500.0,0.00028,30]
[355074078,1740886337946,-1978.1143091,0.00028,30]
[355074079,1740886337956,-500.0,0.00028,30]
[355074080,1740886337965,-500.0,0.00028,30]
[355074081,1740886337975,-500.0,0.00028,30]
[355074082,1740886337984,-500.0,0.00028,30]
[355074083,1740886337994,-500.0,0.00028,30]
[355074084,1740886338003,-500.0,0.00028,30]
[355074085,1740886338014,-500.0,0.00028,30]
[355074086,1740886338023,-500.0,0.00028,30]
[355074087,1740886338033,-505.32987184,0.00028,30]
[355074088,1740886338043,-500.0,0.00028,30]
[355074089,1740886338053,-500.0,0.00028,30]
[355074090,1740886338063,-500.0,0.00028,30]
[355074091,1740886338072,-500.0,0.00028,30]
[355074092,1740886338082,-500.0,0.00028,30]
[355074093,1740886338091,-506.86201686,0.00028,30]
[355074094,1740886338101,-500.0,0.00028,30]
[355074095,1740886338111,-500.0,0.00028,30]
[355074096,1740886338121,-500.0,0.00028,30]
[355074097,1740886338131,-502.09361764,0.00028,30]
[355074098,1740886338141,-2400.0,0.00028,30]
[355074099,1740886338151,-2400.0,0.00028,30]
[355074100,1740886338161,-2400.0,0.00028,30]
[355074101,1740886338171,-2400.0,0.00028,30]
[355074102,1740886338181,-2400.0,0.00028,30]
[355074103,1740886338191,-2400.0,0.00028,30]
[355074104,1740886338201,-2400.0,0.00028,30]
[355074105,1740886338211,-2400.0,0.00028,30]
[355074106,1740886338221,-2400.0,0.00028,30]
[355074107,1740886338230,-2400.0,0.00028,30]
[355074108,1740886338240,-2400.0,0.00028,30]
[355074109,1740886338253,-2400.0,0.00028,30]
[355074110,1740886338263,-2400.0,0.00028,30]
[355074111,1740886338273,-4693.97585659,0.00028,30]
[355074112,1740886338283,-500.0,0.00028,30]
[355074113,1740886338294,-500.0,0.00028,2]
[355074114,1740886338304,-687.36,0.00028022,2]
[355074115,1740886338315,-1084.31,0.00028022,2]
[355074116,1740886338326,-896.18,0.00028022,2]
[355074117,1740886338336,-275.09050837,0.00028022,2]
[355074118,1740886338346,-500.0,0.00028022,2]
[355074119,1740886338356,-1218.11,0.00028022,2]
[355074120,1740886338365,-828.57,0.00028022,2]
[355074121,1740886338375,-500.0,0.00028022,2]
[355074122,1740886338386,-695.69,0.00028022,2]
[355074123,1740886338396,-188.81370208,0.00028022,2]
[355074124,1740886338406,-1314.21,0.00028022,2]
[355074125,1740886338418,-905.22,0.00028022,2]
[355074126,1740886338429,-614.99,0.00028022,2]
[355074127,1740886338441,-1289.22,0.00028022,2]
[355074128,1740886338451,-598.14,0.00028022,2]
[355074129,1740886338463,-2226.86,0.00028022,2]
[355074130,1740886338474,-2581.24,0.00028022,2]
[355074131,1740886338484,-374.69971908,0.00028022,2]
[355074132,1740886338495,-1739.44,0.00028022,2]
[355074133,1740886338506,-1169.44,0.00028022,2]
[355074134,1740886338516,-500.0,0.00028022,2]
[355074135,1740886338526,-756.25,0.00028022,2]
[355074136,1740886338537,-1204.9,0.00028022,2]
[355074137,1740886338548,-500.0,0.00028022,2]
[355074138,1740886338560,-1004.4,0.00028022,2]
[355074139,1740886338571,-4788.78,0.00028022,2]
[355074140,1740886338583,-531.68,0.00028022,2]
[355074141,1740886338593,-3299.15,0.00028022,2]
[355074142,1740886338603,-500.0,0.00028022,2]
[355074143,1740886338614,-3768.09,0.00028022,2]
[355074144,1740886338624,-1428.31,0.00028022,2]
[355074145,1740886338634,-851.2,0.00028022,2]
[355074146,1740886338645,-2684.0,0.00028022,2]
[355074147,1740886338655,-4323.02,0.00028022,2]
[355074148,1740886338666,-782.1,0.00028022,2]
[355074149,1740886338676,-590.63,0.00028022,2]
[355074150,1740886338686,-1784.14,0.00028022,2]
[355074151,1740886338697,-1315.96,0.00028022,2]
[355074152,1740886338707,-659.17,0.00028022,2]
[355074153,1740886338716,-1228.88,0.00028022,2]
[355074154,1740886338727,-666.93,0.00028022,2]
[355074155,1740886338737,-1449.12,0.00028022,2]
[355074156,1740886338748,-505.18,0.00028022,2]
[355074157,1740886338758,-1090.34,0.00028022,2]
[355074158,1740886338767,-2634.31,0.00028022,2]
[355074159,1740886338778,-500.0,0.00028022,2]
[355074160,1740886338787,-569.32,0.00028022,2]
[355074161,1740886338797,-6333.26,0.00028022,2]
[355074162,1740886338807,-500.0,0.00028022,2]
[355074163,1740886338817,-500.0,0.00028022,2]
[355074164,1740886338829,-500.0,0.00028022,2]
[355074165,1740886338839,-500.0,0.00028022,2]
[355074166,1740886338850,-1915.38,0.00028022,2]
[355074167,1740886338860,-500.51,0.00028023,2]
[355074168,1740886338871,-500.0,0.00028023,2]
[355074169,1740886338881,-591.09,0.00028023,2]
[355074170,1740886338892,-553.7,0.00028023,2]
[355074171,1740886338902,-524.51,0.00028023,2]
[355074172,1740886338912,-1474.58,0.00028023,2]
[355074173,1740886338922,-500.0,0.00028023,2]
[355074174,1740886338932,-687.64,0.00028023,2]
[355074175,1740886338942,-521.17,0.00028023,2]
[355074176,1740886338952,-928.01,0.00028023,2]
[355074177,1740886338962,-500.0,0.00028023,2]
[355074178,1740886338973,-583.22,0.00028023,2]
[355074179,1740886338984,-500.0,0.00028023,2]
[355074180,1740886338994,-821.72,0.00028023,2]
[355074181,1740886339004,-703.97,0.00028023,2]
[355074182,1740886339014,-646.1,0.00028023,2]
[355074183,1740886339024,-1413.57,0.00028023,2]
[355074184,1740886339034,-548.28,0.00028023,2]
[355074185,1740886339044,-1102.8,0.00028023,2]
[355074186,1740886339054,-694.6,0.00028023,2]
[355074187,1740886339063,-540.61,0.00028023,2]
[355074188,1740886339073,-500.0,0.00028023,2]
[355074189,1740886339083,-623.08,0.00028023,2]
[355074190,1740886339092,-1137.28,0.00028023,2]
[355074191,1740886339102,-1017.35,0.00028023,2]
[355074192,1740886339112,-1330.22,0.00028023,2]
[355074193,1740886339122,-1066.57,0.00028023,2]
[355074194,1740886339133,-500.0,0.00028023,2]
[355074195,1740886339143,-2368.56,0.00028023,2]
[355074196,1740886339153,-1359.76,0.00028023,2]
[355074197,1740886339164,-205.69271906,0.00028038,4]
[355074198,1740886339174,-160.0,0.000281,30]
[355074199,1740886339184,-13513.14,0.00028174,2]
[355074200,1740886339195,-7624.93,0.00028174,2]
[355074201,1740886339205,-1615.71,0.00028174,5]
[355074202,1740886339215,-2961.69,0.00028174,2]
[355074203,1740886339225,-2330.23,0.00028174,2]
[355074204,1740886339235,-2306.22,0.00028174,2]
[355074205,1740886339245,-500.0,0.00028174,2]
[355074206,1740886339259,-632.19,0.00028186,2]
[355074207,1740886339270,-2053.23,0.00028186,2]
[355074208,1740886339281,-1289.53,0.00028186,2]
[355074209,1740886339291,-542.79,0.00028186,2]
[355074210,1740886339303,-729.52,0.00028186,2]
[355074211,1740886339314,-2911.18,0.00028186,2]
[355074212,1740886339325,-543.53,0.00028186,2]
[355074213,1740886339338,-1263.1,0.00028186,2]
[355074214,1740886339349,-2931.73,0.00028186,2]
[355074215,1740886339360,-500.0,0.00028186,2]
[355074216,1740886339370,-1979.56,0.00028186,2]
[355074217,1740886339380,-523.18,0.00028186,2]
[355074218,1740886339393,-500.0,0.00028186,2]
[355074219,1740886339404,-2314.06,0.00028186,2]
[355074220,1740886339415,-2260.58,0.00028186,2]
[355074221,1740886339425,-828.38,0.00028186,2]
[355074222,1740886339435,-500.0,0.00028186,2]
[355074223,1740886339445,-2081.84,0.00028186,2]
[355074224,1740886339456,-1076.19,0.00028186,2]
[355074225,1740886339467,-1339.9,0.00028186,2]
[355074226,1740886339477,-500.0,0.00028186,2]
[355074227,1740886339488,-3469.31,0.00028186,2]
[355074228,1740886339498,-1990.46,0.00028186,2]
[355074229,1740886339508,-971.07,0.00028186,2]
[355074230,1740886339735,-1249.98,0.00028186,2]
[355074231,1740886339746,-2179.06,0.00028186,2]
[355074232,1740886339756,-1012.24,0.00028186,2]
[355074233,1740886339767,-3060.91,0.00028186,2]
[355074234,1740886339776,-559.99,0.00028186,2]
[355074235,1740886339787,-615.9,0.00028186,2]
[355074236,1740886339797,-1996.5,0.00028186,2]
[355074237,1740886339806,-4060.12,0.00028186,2]
[355074238,1740886339816,-10606.09,0.00028186,2]
[355074239,1740886339826,-2799.89,0.00028186,2]
[355074240,1740886339836,-1333.19,0.00028186,2]
[355074241,1740886339846,-719.18,0.00028186,2]
[355074242,1740886339856,-835.72,0.00028186,2]
[355074243,1740886339865,-1367.07,0.00028186,2]
[355074244,1740886339876,-2939.4,0.00028186,2]
[355074245,1740886339887,-1214.18,0.00028186,2]
[355074246,1740886339896,-4481.86,0.00028186,2]
[355074247,1740886339906,-548.69,0.00028186,2]
[355074248,1740886339916,-659.46,0.00028186,2]
[355074249,1740886339926,-4158.95,0.00028186,2]
[355074250,1740886339937,-500.0,0.00028186,2]
[355074251,1740886339947,-848.25,0.00028186,2]
[355074252,1740886339957,-25489.85,0.00028186,2]
[355074253,1740886339967,-1593.02,0.00028186,2]
[355074254,1740886339978,-3140.53,0.00028186,2]
[355074255,1740886339987,-716.21,0.00028186,2]
[355074256,1740886339998,-500.0,0.00028186,2]
[355074257,1740886340007,-4639.3,0.00028186,2]
[355074258,1740886340018,-500.0,0.00028186,2]
[355074259,1740886340027,-14182.49,0.00028186,2]
[355074260,1740886340037,-1188.6,0.00028186,2]
[355074261,1740886340047,-592.63,0.00028186,2]
[355074262,1740886340057,-1643.74,0.00028186,2]
[355074263,1740886340067,-12307.96,0.00028186,2]
[355074264,1740886340076,-1368.42,0.00028186,2]
[355074265,1740886340087,-669.91,0.00028186,2]
[355074266,1740886340096,-500.0,0.00028186,2]
[355074267,1740886340106,-3975.37,0.00028186,2]
[355074268,1740886340116,-501.67,0.00028186,2]
[355074269,1740886340126,-1802.14,0.00028186,2]
[355074270,1740886340136,-962.58,0.00028186,2]
[355074271,1740886340146,-789.66,0.00028186,2]
[355074272,1740886340156,-1159.12,0.00028186,2]
[355074273,1740886340166,-20055.8,0.00028186,2]
[355074274,1740886340176,-2419.35,0.00028186,2]
[355074275,1740886340186,-4017.73,0.00028186,2]
[355074276,1740886340196,-2550.68,0.00028186,2]
[355074277,1740886340205,-1400.73,0.00028186,2]
[355074278,1740886340215,-596.32,0.00028186,2]
[355074279,1740886340226,-718.57,0.00028186,2]
[355074280,1740886340236,-1849.98,0.00028186,2]
[355074281,1740886340246,-18199.11,0.00028186,2]
[355074282,1740886340259,-353.74883595,0.00028186,2]
[355074283,1740886340270,-6307.07,0.00028186,2]
[355074284,1740886340280,-3500.41,0.00028186,2]
[355074285,1740886340289,-740.47,0.00028186,2]
[355074286,1740886340299,-500.0,0.00028186,2]
[355074287,1740886340309,-1093.67,0.00028186,2]
[355074288,1740886340319,-11719.04,0.00028186,2]
[355074289,1740886340330,-2757.89,0.00028186,2]
[355074290,1740886340340,-1586.33,0.00028186,2]
[355074291,1740886340350,-23789.19,0.00028186,2]
[355074292,1740886340360,-1230.43,0.00028186,2]
[355074293,1740886340370,-3144.58,0.00028186,2]
[355074294,1740886340379,-733.81,0.00028186,2]
[355074295,1740886340389,-6887.34,0.00028186,2]
[355074296,1740886340399,-526.15,0.00028187,2]
[355074297,1740886340409,-1168.03,0.00028187,2]
[355074298,1740886340419,-595.70531924,0.00028187,2]
[355074299,1740886340428,-930.89,0.00028187,2]
[355074300,1740886340438,-602.99,0.00028187,2]
[355074301,1740886340448,-500.03,0.00028187,2]
[355074302,1740886340458,-912.13,0.00028187,2]
[355074303,1740886340468,-500.0,0.00028187,2]
[355074304,1740886340478,-860.85,0.00028187,2]
[355074305,1740886340487,-500.0,0.00028187,2]
[355074306,1740886340497,-500.0,0.00028187,2]
[355074307,1740886340507,-598.94392391,0.00028187,2]
[355074308,1740886340517,-500.0,0.00028187,2]
[355074309,1740886340527,-1228.22,0.00028187,2]
[355074310,1740886340536,-756.89,0.00028187,2]
[355074311,1740886340546,-585.74,0.00028187,2]
[355074312,1740886340556,-564.12,0.00028187,2]
[355074313,1740886340566,-685.69,0.00028187,2]
[355074314,1740886340576,-509.1,0.00028187,2]
[355074315,1740886340586,-500.0,0.00028187,2]
[355074316,1740886340596,-517.83699947,0.00028187,2]
[355074317,1740886340606,-766.25,0.00028187,2]
[355074318,1740886340616,-1706.06,0.00028187,2]
[355074319,1740886340625,-870.92,0.00028187,2]
[355074320,1740886340636,-531.24,0.00028187,2]
[355074321,1740886340645,-818.25,0.00028187,2]
[355074322,1740886340655,-855.68,0.00028187,2]
[355074323,1740886340665,-500.49,0.00028187,2]
[355074324,1740886340674,-630.0,0.00028187,2]
[355074325,1740886340684,-500.0,0.00028187,2]
[355074326,1740886340694,-500.0,0.00028187,2]
[355074327,1740886340704,-500.0,0.00028187,2]
[355074328,1740886340713,-500.0,0.00028187,2]
[355074329,1740886340723,-1052.31,0.00028187,2]
[355074330,1740886340732,-1446.78,0.00028187,2]
[355074331,1740886340742,-607.0,0.00028187,2]
[355074332,1740886340752,-500.0,0.00028187,2]
[355074333,1740886340762,-500.0,0.00028187,2]
[355074334,1740886340772,-1818.63,0.00028187,2]
[355074335,1740886340782,-500.0,0.00028187,2]
[355074336,1740886340791,-500.0,0.00028187,2]
[355074337,1740886340801,-618.37,0.00028187,2]
[355074338,1740886340811,-604.16,0.00028187,2]
[355074339,1740886340821,-500.0,0.00028187,2]
[355074340,1740886340830,-500.0,0.00028187,2]
[355074341,1740886340840,-938.5,0.00028187,2]
[355074342,1740886340849,-801.7,0.00028187,2]
[355074343,1740886340859,-340.88673329,0.00028187,2]
[355074344,1740886340868,-1129.81,0.00028187,2]
[355074345,1740886340878,-8270.53,0.00028187,2]
[355074346,1740886340888,-1547.95,0.00028187,2]
[355074347,1740886340898,-27555.16,0.00028187,2]
[355074348,1740886340908,-1394.09,0.00028187,2]
[355074349,1740886340918,-1310.16,0.00028187,2]
[355074350,1740886340928,-1400.07,0.00028187,2]
[355074351,1740886340937,-3117.57,0.00028187,2]
[355074352,1740886340947,-2046.05,0.00028187,2]
[355074353,1740886340956,-3193.9,0.00028187,2]
[355074354,1740886340966,-2337.31,0.00028187,2]
[355074355,1740886340976,-617.74,0.00028187,2]
[355074356,1740886340986,-281943.9,0.00028187,2]
[355074357,1740886340996,-500.0,0.00028187,2]
[355074358,1740886341006,-737.91,0.00028187,2]
[355074359,1740886341016,-549.97,0.00028187,2]
[355074360,1740886341026,-6435.74,0.00028187,2]
[355074361,1740886341036,-500.0,0.00028187,2]
[355074362,1740886341046,-3670.05,0.00028187,2]
[355074363,1740886341057,-8285.81,0.00028187,2]
[355074364,1740886341066,-794.47,0.00028187,2]
[355074365,1740886341076,-1888.44,0.00028187,2]
[355074366,1740886341086,-1071.59,0.00028187,2]
[355074367,1740886341096,-603.56,0.00028187,2]
[355074368,1740886341106,-1646.49,0.00028187,2]
[355074369,1740886341116,-2181.0,0.00028187,2]
[355074370,1740886341126,-2015.79,0.00028187,2]
[355074371,1740886341138,-500.0,0.00028187,2]
[355074372,1740886341148,-1677.97,0.00028187,2]
[355074373,1740886341158,-2507.59,0.00028187,2]
[355074374,1740886341168,-500.0,0.00028187,2]
[355074375,1740886341177,-500.0,0.00028187,2]
[355074376,1740886341187,-155.378755,0.00028228,2]
[355074377,1740886341196,-687.36,0.00028296,2]
[355074378,1740886341206,-1084.31,0.00028296,2]
[355074379,1740886341216,-896.18,0.00028296,2]
[355074380,1740886341225,-500.0,0.00028296,2]
[355074381,1740886341235,-1218.11,0.00028296,2]
[355074382,1740886341245,-828.57,0.00028296,2]
[355074383,1740886341256,-292.40523057,0.00028296,2]
[355074384,1740886341266,-695.69,0.00028296,2]
[355074385,1740886341276,-1314.21,0.00028296,2]
[355074386,1740886341285,-905.22,0.00028296,2]
[355074387,1740886341295,-614.99,0.00028296,2]
[355074388,1740886341306,-1289.22,0.00028296,2]
[355074389,1740886341316,-598.14,0.00028296,2]
[355074390,1740886341326,-2226.86,0.00028296,2]
[355074391,1740886341337,-2581.24,0.00028296,2]
[355074392,1740886341347,-1739.44,0.00028296,2]
[355074393,1740886341357,-1169.44,0.00028296,2]
[355074394,1740886341367,-500.0,0.00028296,2]
[355074395,1740886341378,-756.25,0.00028296,2]
[355074396,1740886341388,-1204.9,0.00028296,2]
[355074397,1740886341399,-500.0,0.00028296,2]
[355074398,1740886341410,-1004.4,0.00028296,2]
[355074399,1740886341420,-4788.78,0.00028296,2]
[355074400,1740886341430,-531.68,0.00028296,2]
[355074401,1740886341440,-3299.15,0.00028296,2]
[355074402,1740886341450,-500.0,0.00028296,2]
[355074403,1740886341461,-3768.09,0.00028296,2]
[355074404,1740886341471,-1428.31,0.00028296,2]
[355074405,1740886341482,-851.2,0.00028296,2]
[355074406,1740886341492,-2684.0,0.00028296,2]
[355074407,1740886341502,-4323.02,0.00028296,2]
[355074408,1740886341512,-782.1,0.00028296,2]
[355074409,1740886341522,-590.63,0.00028296,2]
[355074410,1740886341532,-1784.14,0.00028296,2]
[355074411,1740886341542,-1315.96,0.00028296,2]
[355074412,1740886341552,-659.17,0.00028296,2]
[355074413,1740886341562,-1228.88,0.00028296,2]
[355074414,1740886341572,-666.93,0.00028296,2]
[355074415,1740886341582,-1449.12,0.00028296,2]
[355074416,1740886341592,-505.18,0.00028296,2]
[355074417,1740886341602,-1090.34,0.00028296,2]
[355074418,1740886341612,-2634.31,0.00028296,2]
[355074419,1740886341622,-206.82472665,0.00028296,2]
[355074420,1740886341632,-569.32,0.00028296,2]
[355074421,1740886341642,-6333.26,0.00028296,2]
[355074422,1740886341652,-510.0945469,0.00028296,2]
[355074423,1740886341662,-500.0,0.00028296,2]
[355074424,1740886341673,-500.0,0.00028296,2]
[355074425,1740886341683,-500.0,0.00028296,2]
[355074426,1740886341692,-1915.38,0.00028296,2]
[355074427,1740886341702,-500.51,0.00028297,2]
[355074428,1740886341712,-500.0,0.00028297,2]
[355074429,1740886341722,-591.09,0.00028297,2]
[355074430,1740886341731,-553.7,0.00028297,2]
[355074431,1740886341741,-524.51,0.00028297,2]
[355074432,1740886341750,-1474.58,0.00028297,2]
[355074433,1740886341760,-500.0,0.00028297,2]
[355074434,1740886341770,-687.64,0.00028297,2]
[355074435,1740886341779,-521.17,0.00028297,2]
[355074436,1740886341788,-928.01,0.00028297,2]
[355074437,1740886341798,-500.0,0.00028297,2]
[355074438,1740886341807,-583.22,0.00028297,2]
[355074439,1740886341817,-350.06178652,0.00028297,2]
[355074440,1740886341828,-821.72,0.00028297,2]
[355074441,1740886341837,-703.97,0.00028297,2]
[355074442,1740886341847,-646.1,0.00028297,2]
[355074443,1740886341857,-1413.57,0.00028297,2]
[355074444,1740886341867,-548.28,0.00028297,2]
[355074445,1740886341876,-1102.8,0.00028297,2]
[355074446,1740886341887,-694.6,0.00028297,2]
[355074447,1740886341897,-540.61,0.00028297,2]
[355074448,1740886341907,-500.0,0.00028297,2]
[355074449,1740886341916,-623.08,0.00028297,2]
[355074450,1740886341926,-1137.28,0.00028297,2]
[355074451,1740886341935,-1017.35,0.00028297,2]
[355074452,1740886341945,-1330.22,0.00028297,2]
[355074453,1740886341954,-1066.57,0.00028297,2]
[355074454,1740886341964,-500.0,0.00028297,2]
[355074455,1740886341973,-2368.56,0.00028297,2]
[355074456,1740886341983,-1359.76,0.00028297,2]
[355074457,1740886341994,-155.378755,0.0002834,14]
[355074458,1740886342003,-205.69271906,0.00028383,5]
[355074459,1740886342013,-826.56,0.000284,7]
[355074460,1740886342023,-150.0,0.00028405,14]
[355074461,1740886342033,-150.0,0.00028405,14]
[355074462,1740886342043,-13513.14,0.00028448,2]
[355074463,1740886342052,-7624.93,0.00028448,2]
[355074464,1740886342062,-1615.71,0.00028448,5]
[355074465,1740886342072,-2961.69,0.00028448,2]
[355074466,1740886342082,-2330.23,0.00028448,2]
[355074467,1740886342092,-2306.22,0.00028448,2]
[355074468,1740886342101,-500.0,0.00028448,2]
[355074469,1740886342111,-632.19,0.0002846,2]
[355074470,1740886342122,-2053.23,0.0002846,2]
[355074471,1740886342132,-1289.53,0.0002846,2]
[355074472,1740886342143,-542.79,0.0002846,2]
[355074473,1740886342153,-729.52,0.0002846,2]
[355074474,1740886342163,-2911.18,0.0002846,2]
[355074475,1740886342173,-543.53,0.0002846,2]
[355074476,1740886342242,-1263.1,0.0002846,2]
[355074477,1740886342257,-2931.73,0.0002846,2]
[355074478,1740886342267,-500.0,0.0002846,2]
[355074479,1740886342277,-1979.56,0.0002846,2]
[355074480,1740886342286,-523.18,0.0002846,2]
[355074481,1740886342297,-306.74638987,0.0002846,2]
[355074482,1740886342306,-2314.06,0.0002846,2]
[355074483,1740886342316,-2260.58,0.0002846,2]
[355074484,1740886342326,-828.38,0.0002846,2]
[355074485,1740886342337,-500.0,0.0002846,2]
[355074486,1740886342349,-2081.84,0.0002846,2]
[355074487,1740886342358,-1076.19,0.0002846,2]
[355074488,1740886342368,-1339.9,0.0002846,2]
[355074489,1740886342378,-500.0,0.0002846,2]
[355074490,1740886342388,-3469.31,0.0002846,2]
[355074491,1740886342398,-1990.46,0.0002846,2]
[355074492,1740886342407,-971.07,0.0002846,2]
[355074493,1740886342417,-1249.98,0.0002846,2]
[355074494,1740886342428,-2179.06,0.0002846,2]
[355074495,1740886342437,-1012.24,0.0002846,2]
[355074496,1740886342447,-3060.91,0.0002846,2]
[355074497,1740886342456,-559.99,0.0002846,2]
[355074498,1740886342467,-615.9,0.0002846,2]
[355074499,1740886342476,-1996.5,0.0002846,2]
[355074500,1740886342485,-4060.12,0.0002846,2]
[355074501,1740886342495,-10606.09,0.0002846,2]
[355074502,1740886342505,-2799.89,0.0002846,2]
[355074503,1740886342515,-1333.19,0.0002846,2]
[355074504,1740886342525,-719.18,0.0002846,2]
[355074505,1740886342535,-835.72,0.0002846,2]
[355074506,1740886342545,-1367.07,0.0002846,2]
[355074507,1740886342556,-2939.4,0.0002846,2]
[355074508,1740886342567,-1214.18,0.0002846,2]
[355074509,1740886342578,-4481.86,0.0002846,2]
[355074510,1740886342587,-548.69,0.0002846,2]
[355074511,1740886342597,-659.46,0.0002846,2]
[355074512,1740886342606,-4158.95,0.0002846,2]
[355074513,1740886342616,-332.92130972,0.0002846,2]
[355074514,1740886342625,-848.25,0.0002846,2]
[355074515,1740886342635,-25489.85,0.0002846,2]
[355074516,1740886342645,-1593.02,0.0002846,2]
[355074517,1740886342655,-3140.53,0.0002846,2]
[355074518,1740886342664,-716.21,0.0002846,2]
[355074519,1740886342673,-500.0,0.0002846,2]
[355074520,1740886342682,-4639.3,0.0002846,2]
[355074521,1740886342691,-500.0,0.0002846,2]
[355074522,1740886342701,-14182.49,0.0002846,2]
[355074523,1740886342710,-1188.6,0.0002846,2]
[355074524,1740886342719,-592.63,0.0002846,2]
[355074525,1740886342729,-1643.74,0.0002846,2]
[355074526,1740886342738,-12307.96,0.0002846,2]
[355074527,1740886342748,-1368.42,0.0002846,2]
[355074528,1740886342757,-669.91,0.0002846,2]
[355074529,1740886342767,-500.0,0.0002846,2]
[355074530,1740886342776,-3975.37,0.0002846,2]
[355074531,1740886342785,-501.67,0.0002846,2]